bitfinex/quotes_ETHUSD_20240719
["timestamp","ask_amount","ask_price","bid_price","bid_amount"]
[1721383405767,0.61485695,3396.2,3396.1,2.94455]
[1721383406831,0.61485695,3396.3,3396.2,2.94446]
[1721383407660,0.61485695,3396.4,3396.2,2.94446]
[1721383408375,8.67009651,3396.7,3396.3,2.94438]
[1721383408376,0.61485695,3396.6,3396.3,2.94438]
[1721383409671,0.61485695,3396.5,3396.3,2.94438]
[1721383410870,0.61485695,3396.5,3396.4,2.94429]
[1721383411870,0.61485695,3396.6,3396.4,2.94429]
[1721383412183,0.61485695,3396.5,3396.4,2.94429]
[1721383412852,0.61485695,3396.6,3396.4,2.94429]
[1721383413061,0.61485695,3396.9,3396.8,2.94394]
[1721383413254,0.61485695,3396.9,3396.8,5.88788]
[1721383413452,0.61485695,3397.0,3396.9,2.94386]
[1721383414538,0.61485695,3397.0,3396.9,6.4765]
[1721383414775,0.61485695,3397.3,3397.1,2.94368]
[1721383414933,0.61485695,3397.4,3397.2,2.9436]
[1721383415139,0.61485695,3397.5,3397.3,2.94351]
[1721383415352,0.61485695,3397.5,3397.4,2.94342]
[1721383415540,0.61485695,3397.6,3397.4,2.94342]
[1721383416371,0.61485695,3397.7,3397.5,2.94334]
[1721383417151,0.61485695,3397.6,3397.5,2.94334]
[1721383417480,0.61485695,3397.7,3397.5,2.94334]
[1721383418559,0.61485695,3397.8,3397.6,2.94325]
[1721383418739,0.91507238,3398.0,3397.6,2.94325]
[1721383418740,0.61485695,3397.9,3397.6,2.94325]
[1721383418940,0.61485695,3398.0,3397.6,2.94325]
[1721383419968,0.61485695,3398.1,3397.6,2.94325]
[1721383420354,0.61485695,3398.0,3397.6,2.94325]
[1721383420656,0.61485695,3398.1,3397.6,2.94325]
[1721383420857,0.61485695,3398.1,3397.7,2.94315]
[1721383421256,0.61485695,3398.2,3397.9,2.94293]
[1721383421558,8.67009651,3398.5,3398.0,2.9429]
[1721383421559,0.61485695,3398.4,3398.0,2.9429]
[1721383421786,0.61485695,3398.6,3398.0,2.9429]
[1721383422097,0.61485695,3398.6,3398.1,2.94281]
[1721383422654,3.55725695,3398.6,3397.9,2.94293]
[1721383422902,0.61485695,3398.5,3397.6,2.94322]
[1721383423283,2.9427,3398.3,3397.6,2.94322]
[1721383423479,2.9427,3398.3,3397.7,2.94316]
[1721383423872,2.9427,3398.3,3397.6,2.94324]
[1721383424258,2.9427,3398.3,3397.7,2.94316]
[1721383424757,2.94248,3398.5,3397.6,2.94324]
[1721383424758,0.61485695,3398.6,3397.8,2.94307]
[1721383424957,2.94256,3398.4,3397.8,2.94307]
[1721383425357,2.94256,3398.4,3397.6,2.94324]
[1721383425591,2.94266,3398.3,3397.6,2.94324]
[1721383425973,2.94266,3398.3,3397.7,2.94316]
[1721383426870,2.94266,3398.3,3397.5,5.8866]
[1721383427198,2.94266,3398.3,3397.7,2.94314]
[1721383427401,2.98065695,3398.7,3397.7,0.58534659]
[1721383427402,5.92298695,3398.7,3397.7,0.58534659]
[1721383427576,5.92298695,3398.7,3398.0,2.94285]
[1721383427577,2.94233,3398.7,3398.0,2.94285]
[1721383428396,2.94247,3398.5,3397.8,2.94305]
[1721383428667,2.94247,3398.5,3398.0,2.9429]
[1721383430011,2.94247,3398.5,3397.6,2.94321]
[1721383430305,2.94267,3398.3,3397.6,2.94321]
[1721383431304,5.88501,3398.5,3397.7,2.94311]
[1721383431507,2.94257,3398.4,3397.8,2.94306]
[1721383432022,2.94244,3398.6,3397.8,2.94306]
[1721383432163,2.94244,3398.6,3397.9,0.294306]
[1721383432763,2.94248,3398.5,3397.8,2.94306]
[1721383432986,2.94261,3398.4,3397.8,2.94306]
[1721383433568,2.94261,3398.4,3397.2,5.24289]
[1721383433569,2.94279,3398.2,3397.4,5.88674]
[1721383433764,2.94279,3398.2,3397.4,2.94335]
[1721383433964,2.94279,3398.2,3397.5,2.94327]
[1721383434169,2.94279,3398.2,3397.6,2.94324]
[1721383435771,2.94282,3398.1,3397.5,3.761912]
[1721383438314,2.9427,3398.3,3397.6,2.94324]
[1721383439282,2.9427,3398.3,3397.7,2.94315]
[1721383440629,2.9427,3398.3,3397.5,6.705172]
[1721383440833,2.94273,3398.2,3397.5,3.761852]
[1721383442610,2.94304,3397.9,3397.2,2.94353]
[1721383442987,2.94304,3397.9,3397.2,5.88705]
[1721383443481,2.94288,3398.1,3397.2,2.94352]
[1721383443678,2.94288,3398.1,3397.4,2.94335]
[1721383443927,2.94268,3398.3,3397.6,2.94322]
[1721383444495,10.39249,3398.5,3397.8,2.94307]
[1721383445523,10.39249,3398.5,3397.9,2.94297]
[1721383445734,2.94249,3398.5,3397.8,2.94307]
[1721383446025,2.94256,3398.4,3397.8,2.94307]
[1721383446384,2.94265,3398.3,3397.6,2.94323]
[1721383446583,2.94265,3398.3,3397.4,5.850997]
[1721383446584,2.94283,3398.1,3397.4,3.532097]
[1721383446803,2.94283,3398.1,3397.5,3.0]
[1721383446990,2.94283,3398.1,3397.5,5.94333]
[1721383447206,2.94265,3398.3,3397.6,2.94325]
[1721383447515,2.94248,3398.5,3397.7,2.94316]
[1721383447885,2.94266,3398.3,3397.5,10.0616477]
[1721383448082,5.41524,3398.7,3397.5,4.1750477]
[1721383448312,2.94238,3398.6,3397.9,2.94292]
[1721383449406,2.94238,3398.6,3398.0,2.94289]
[1721383449613,2.4729,3398.7,3398.1,2.9428]
[1721383449922,5.4152,3398.7,3398.1,2.9428]
[1721383450543,5.4152,3398.7,3397.9,2.94299]
[1721383450694,2.94239,3398.6,3397.9,2.94299]
[1721383451508,6.03005695,3398.7,3397.7,2.94313]
[1721383451509,2.94257,3398.4,3397.7,2.94313]
[1721383451838,2.9427,3398.3,3397.6,2.94325]
[1721383453114,2.94274,3398.2,3397.3,3.0]
[1721383453340,2.94274,3398.2,3397.4,0.821848]
[1721383453502,2.94274,3398.2,3397.5,2.94328]
[1721383453849,3.55755695,3398.3,3397.6,2.94325]
[1721383453850,0.61485695,3398.3,3397.6,2.94325]
[1721383453994,3.85763238,3398.4,3397.6,2.94325]
[1721383453995,2.94256,3398.4,3397.6,2.94325]
[1721383454192,2.94265,3398.3,3397.6,2.94325]
[1721383454440,3.55750695,3398.3,3397.6,2.94325]
[1721383454612,0.61485695,3398.2,3397.6,2.94325]
[1721383455290,3.55750695,3398.3,3397.6,2.94325]
[1721383455497,0.61485695,3398.2,3397.6,2.94325]
[1721383455935,3.09615695,3398.0,3397.0,2.94373]
[1721383456117,3.09615695,3398.0,3396.7,2.94398]
[1721383456118,0.61485695,3397.6,3396.7,2.94398]
[1721383456317,0.61485695,3397.5,3396.7,2.94398]
[1721383456544,0.61485695,3397.2,3396.7,2.94398]
[1721383456836,0.61485695,3397.2,3396.5,2.94414]
[1721383457150,0.61485695,3397.2,3395.6,2.15072048]
[1721383457151,2.94378,3397.0,3396.3,2.94432]
[1721383457302,3.55863695,3397.0,3396.3,2.94432]
[1721383457712,3.55877695,3396.9,3396.1,2.94452]
[1721383458035,0.61485695,3396.7,3396.1,2.94452]
[1721383458368,3.85907238,3396.8,3396.1,3.533452]
[1721383458369,0.61485695,3396.6,3396.1,3.533452]
[1721383458652,0.61485695,3396.7,3396.2,2.94446]
[1721383458810,0.61485695,3396.7,3396.3,2.94436]
[1721383459012,0.61485695,3396.9,3396.5,2.94413]
[1721383459463,0.61485695,3397.0,3396.5,2.94413]
[1721383459764,0.61485695,3397.0,3396.6,2.9441]
[1721383459945,0.61485695,3397.2,3396.7,2.94395]
[1721383460316,0.61485695,3397.3,3396.7,2.94395]
[1721383460535,0.61485695,3397.2,3396.7,2.94395]
[1721383460719,0.61485695,3397.2,3396.7,2.94402]
[1721383461070,0.61485695,3397.3,3396.9,2.94379]
[1721383462252,0.61485695,3397.3,3396.1,2.94454]
[1721383462459,0.91507238,3397.4,3396.2,5.94444]
[1721383462460,3.55859695,3397.1,3396.2,5.94444]
[1721383462609,0.61485695,3397.0,3396.3,2.94436]
[1721383462816,0.61485695,3396.8,3396.2,5.94445]
[1721383463030,0.61485695,3396.8,3396.2,7.066535]
[1721383463712,2.94403,3396.7,3396.0,2.94458]
[1721383463920,0.61485695,3396.6,3396.0,2.94458]
[1721383464420,3.55888695,3396.7,3396.0,2.94458]
[1721383464644,0.61485695,3396.8,3395.5,2.2936]
[1721383464844,2.94394,3396.8,3396.1,2.94447]
[1721383465155,2.94403,3396.7,3396.0,2.94463]
[1721383465766,2.94412,3396.6,3396.0,2.94463]
[1721383465985,2.94412,3396.6,3395.6,0.54026]
[1721383465986,0.61485695,3396.6,3395.6,3.48518]
[1721383466136,0.61485695,3396.5,3395.9,2.94469]
[1721383466314,0.61485695,3396.8,3395.9,2.94469]
[1721383466521,3.55885695,3396.8,3396.1,2.94447]
[1721383466755,3.55885695,3396.8,3395.9,2.94466]
[1721383466756,2.94403,3396.7,3395.9,2.94466]
[1721383467072,3.55888695,3396.7,3396.0,3.6212918]
[1721383467231,2.94403,3396.7,3396.0,3.6212918]
[1721383467726,2.94403,3396.7,3396.1,2.94454]
[1721383468558,3.55876695,3396.9,3396.2,2.94444]
[1721383468781,2.94395,3396.8,3396.2,2.94444]
[1721383469860,2.94395,3396.8,3396.2,3.60102818]
[1721383470081,2.94395,3396.8,3396.2,0.65658818]
[1721383470275,2.94395,3396.8,3396.0,2.9446]
[1721383470276,2.94409,3396.7,3396.0,2.9446]
[1721383470653,2.9442,3396.5,3395.8,2.94479]
[1721383470838,2.9442,3396.5,3395.8,3.9049298]
[1721383471378,2.94429,3396.4,3395.7,0.877878]
[1721383471682,2.94429,3396.4,3395.5,2.94506]
[1721383471683,2.94452,3396.2,3395.5,2.94506]
[1721383471988,2.94464,3396.0,3395.3,2.94521]
[1721383472271,2.94464,3396.0,3394.8,10.34559]
[1721383472272,2.94464,3396.0,3395.4,2.94515]
[1721383473181,2.94439,3396.3,3395.2,2.94533]
[1721383473182,2.94479,3395.9,3395.2,2.94533]
[1721383473567,2.94479,3395.9,3395.3,2.94523]
[1721383473740,2.94479,3395.9,3395.3,3.534286]
[1721383474251,2.94479,3395.9,3394.6,2.94581]
[1721383474252,5.273,3395.7,3394.6,2.94582]
[1721383474574,2.94516,3395.4,3394.8,2.94567]
[1721383475441,2.94504,3395.6,3394.9,2.94559]
[1721383475679,2.94504,3395.6,3394.2,5.41015]
[1721383475680,2.94504,3395.6,3395.0,2.94549]
[1721383476052,2.94486,3395.8,3395.1,2.94535]
[1721383476249,2.9449,3395.7,3395.1,2.94535]
[1721383476941,2.94473,3395.9,3394.2,8.573]
[1721383476942,2.94473,3395.9,3395.2,2.94527]
[1721383477137,3.0,3396.1,3395.2,2.94527]
[1721383477138,2.94481,3395.8,3395.2,2.94527]
[1721383477542,2.9449,3395.7,3395.0,2.94548]
[1721383477739,4.7,3396.1,3394.8,2.94565]
[1721383478152,2.94489,3395.8,3394.8,2.94565]
[1721383478365,2.94504,3395.6,3394.9,2.94558]
[1721383478568,4.7,3396.1,3394.7,2.9457]
[1721383478569,2.94507,3395.5,3394.7,2.9457]
[1721383478775,2.94507,3395.5,3394.8,2.94567]
[1721383479448,2.94491,3395.7,3394.8,2.94567]
[1721383479851,2.94491,3395.7,3395.0,2.94549]
[1721383482088,2.94501,3395.6,3395.0,2.94549]
[1721383482559,2.94501,3395.6,3394.8,2.94561]
[1721383483092,2.94501,3395.6,3394.9,2.94558]
[1721383483290,2.94501,3395.6,3394.7,2.94575]
[1721383483469,2.94501,3395.6,3395.0,2.9455]
[1721383484164,2.94501,3395.6,3394.9,2.94558]
[1721383485093,2.94508,3395.5,3394.9,2.94558]
[1721383486161,2.4355,3395.4,3394.9,2.94558]
[1721383486906,2.94525,3395.3,3394.4,2.94602]
[1721383487058,2.9455,3395.1,3394.2,2.94614]
[1721383487259,2.94565,3394.9,3394.2,2.94614]
[1721383487572,2.94565,3394.9,3393.9,2.94643]
[1721383487573,2.94565,3394.9,3394.0,2.94634]
[1721383487777,2.94579,3394.7,3394.0,0.820667]
[1721383487995,2.94579,3394.7,3394.1,2.94628]
[1721383490088,2.94561,3394.9,3394.2,2.94619]
[1721383491309,2.9457,3394.8,3394.1,2.94628]
[1721383491721,2.94561,3394.9,3394.2,2.94613]
[1721383491921,2.94561,3394.9,3394.3,2.94611]
[1721383492217,2.94561,3394.9,3394.2,2.94614]
[1721383493409,2.94527,3395.3,3393.8,2.3139]
[1721383493618,2.94527,3395.3,3394.6,2.94577]
[1721383493914,2.4355,3395.4,3394.6,2.94577]
[1721383493915,5.38068,3395.4,3394.6,2.94577]
[1721383494077,3.0,3395.3,3394.6,2.94577]
[1721383494275,3.0,3395.3,3394.8,2.94561]
[1721383494810,2.94534,3395.2,3394.6,2.94577]
[1721383495314,3.0,3395.3,3394.2,2.94613]
[1721383495315,4.7,3395.3,3394.2,2.94613]
[1721383495621,2.94565,3394.9,3394.2,2.94613]
[1721383496313,2.94565,3394.9,3394.3,2.94611]
[1721383496707,2.94568,3394.8,3394.1,2.94622]
[1721383496896,2.94577,3394.7,3394.1,2.94622]
[1721383497099,5.40577,3394.7,3394.1,2.94622]
[1721383498132,2.46,3394.7,3394.1,2.94622]
[1721383499908,5.40578,3394.7,3394.1,2.94622]
[1721383500519,5.40578,3394.7,3393.9,2.94644]
[1721383500836,1.7,3394.5,3393.3,2.94696]
[1721383501006,2.94655,3393.8,3392.9,2.9473]
[1721383501211,2.94672,3393.6,3393.0,2.9472]
[1721383501408,2.94695,3393.4,3392.6,2.94752]
[1721383501631,2.94695,3393.4,3392.7,2.94749]
[1721383502400,2.94695,3393.4,3392.6,2.94752]
[1721383502604,2.94716,3393.1,3392.3,5.31592]
[1721383502802,2.94716,3393.1,3392.3,2.94782]
[1721383503044,2.94716,3393.1,3392.3,3.537402]
[1721383503212,5.26675,3392.9,3392.1,2.948]
[1721383503418,2.94747,3392.8,3391.9,2.94817]
[1721383503715,2.94765,3392.6,3391.8,2.94822]
[1721383504344,2.94785,3392.3,3391.6,2.94845]
[1721383504840,2.94785,3392.3,3391.7,2.94833]
[1721383505041,2.94778,3392.4,3391.7,2.94833]
[1721383506319,2.94797,3392.2,3391.4,5.89716]
[1721383506543,2.94797,3392.2,3391.5,2.94853]
[1721383507241,2.94811,3392.0,3391.4,2.94856]
[1721383507442,2.94811,3392.0,3391.2,2.94873]
[1721383507658,2.94804,3392.1,3391.4,2.94862]
[1721383507942,2.94804,3392.1,3391.5,2.94854]
[1721383508129,2.94804,3392.1,3391.2,3.838544]
[1721383508639,2.94785,3392.3,3391.3,2.94869]
[1721383509407,2.94785,3392.3,3391.6,2.94844]
[1721383509640,2.94795,3392.2,3391.4,2.94858]
[1721383509953,2.94795,3392.2,3391.5,2.94854]
[1721383510332,7.45,3392.8,3392.4,2.94773]
[1721383510520,2.94708,3393.2,3392.4,2.94773]
[1721383510725,2.94708,3393.2,3392.2,2.94793]
[1721383510943,5.33939,3393.4,3392.5,2.9476]
[1721383511148,7.45,3393.7,3392.9,2.94726]
[1721383511307,0.46219526,3394.0,3393.4,2.94681]
[1721383511540,7.45,3394.2,3393.0,2.94722]
[1721383511738,10.39625,3394.2,3393.4,2.94688]
[1721383511938,10.39625,3394.2,3393.5,2.9468]
[1721383512138,7.45,3394.2,3393.5,2.9468]
[1721383512377,4.64578,3394.7,3393.1,0.05893248]
[1721383512378,2.94589,3394.6,3393.1,0.05893248]
[1721383512598,2.94589,3394.6,3392.8,2.94737]
[1721383512599,2.94594,3394.5,3393.7,2.94657]
[1721383512872,2.3789,3395.0,3392.8,3.00630062]
[1721383512873,2.94582,3394.7,3393.8,2.94654]
[1721383513076,2.94582,3394.7,3392.9,6.00625062]
[1721383513232,2.94561,3394.9,3393.8,2.94649]
[1721383513576,2.3789,3395.0,3394.2,2.94619]
[1721383513577,5.32446,3395.0,3394.2,2.94619]
[1721383513741,2.9456,3394.9,3394.2,2.94619]
[1721383513944,2.94588,3394.6,3393.8,2.94649]
[1721383514186,1.7,3394.7,3393.8,2.94649]
[1721383514473,2.94583,3394.7,3394.0,2.94632]
[1721383514972,2.94561,3394.9,3394.1,2.94627]
[1721383515137,2.3789,3395.0,3393.4,2.94683]
[1721383515345,5.32442,3395.0,3394.3,2.94605]
[1721383515762,5.32442,3395.0,3394.1,2.94625]
[1721383515946,5.32442,3395.0,3394.2,2.94612]
[1721383516848,5.32442,3395.0,3394.3,2.94604]
[1721383518177,5.32442,3395.0,3394.1,2.94627]
[1721383518178,2.94573,3394.8,3394.1,2.94627]
[1721383518473,2.94577,3394.7,3394.1,2.94627]
[1721383518677,2.94577,3394.7,3393.0,11.10962506]
[1721383518678,2.94638,3394.0,3393.3,2.94696]
[1721383518878,12.15,3394.5,3392.7,2.94743]
[1721383519085,13.39598,3394.5,3393.7,2.94658]
[1721383519380,10.45,3394.5,3393.8,2.94653]
[1721383519547,10.45,3394.5,3394.0,2.94636]
[1721383519749,3.0,3394.5,3394.0,2.94636]
[1721383520206,3.0,3394.5,3393.8,2.94653]
[1721383520680,3.0,3394.6,3393.8,2.94653]
[1721383521083,5.9459,3394.6,3393.9,2.94645]
[1721383521382,1.7,3394.9,3394.0,2.9463]
[1721383521383,4.64562,3394.9,3394.0,2.9463]
[1721383521593,0.55,3394.8,3394.0,2.9463]
[1721383521885,2.94573,3394.8,3394.1,2.94622]
[1721383522887,3.0,3394.7,3394.1,2.94622]
[1721383523906,9.8289,3395.0,3393.6,2.94672]
[1721383523907,10.39556,3395.0,3393.6,2.94672]
[1721383524058,10.39556,3395.0,3393.5,2.4513]
[1721383524059,7.45,3395.0,3393.8,2.94652]
[1721383524759,7.45,3395.0,3394.4,2.94596]
[1721383525094,14.5962,3395.5,3394.8,2.94561]
[1721383525095,7.45,3395.5,3394.8,2.94561]
[1721383525403,7.45,3395.5,3394.5,0.05892183]
[1721383525404,9.8116,3396.0,3395.2,2.94524]
[1721383525544,2.94479,3395.9,3395.2,2.94527]
[1721383526667,2.94479,3395.9,3394.0,8.586]
[1721383526668,9.8116,3396.0,3394.8,2.94565]
[1721383526878,2.9449,3395.7,3394.0,5.477]
[1721383527090,2.9449,3395.7,3395.0,2.94544]
[1721383527447,2.94499,3395.6,3394.8,5.89128]
[1721383527651,2.94499,3395.6,3394.8,2.94562]
[1721383527887,2.94499,3395.6,3394.1,3.788546]
[1721383527888,2.94481,3395.8,3394.9,2.94559]
[1721383528192,2.945,3395.6,3395.0,2.9455]
[1721383528375,2.94481,3395.8,3395.1,2.94541]
[1721383530192,2.94476,3395.9,3395.3,2.94524]
[1721383530798,2.94476,3395.9,3394.1,0.842346]
[1721383530799,2.9449,3395.7,3395.1,2.94536]
[1721383531776,2.94499,3395.6,3394.9,2.94559]
[1721383531999,2.94525,3395.3,3394.5,2.94587]
[1721383532165,2.94525,3395.3,3394.6,2.94578]
[1721383532375,5.89028,3395.5,3394.7,2.94569]
[1721383532621,2.94513,3395.5,3394.7,2.94569]
[1721383532862,12.75629,3396.0,3394.0,2.477]
[1721383532863,1.7,3395.9,3394.0,2.477]
[1721383533017,1.7,3395.9,3393.6,2.94671]
[1721383533018,2.94549,3395.1,3393.6,2.94671]
[1721383533217,2.94557,3395.0,3394.3,2.9461]
[1721383533441,2.94557,3395.0,3394.4,2.94602]
[1721383534363,2.94509,3395.5,3394.2,2.94616]
[1721383534651,2.94533,3395.2,3394.5,2.94591]
[1721383534816,3.0,3395.4,3394.5,2.94591]
[1721383535013,2.94509,3395.5,3394.7,2.94569]
[1721383535225,2.94509,3395.5,3394.8,2.94563]
[1721383535424,2.94517,3395.4,3394.8,2.94563]
[1721383537839,2.94517,3395.4,3394.6,2.94583]
[1721383538070,2.94517,3395.4,3394.3,2.94603]
[1721383538071,2.94542,3395.1,3394.1,2.94625]
[1721383538239,2.94542,3395.1,3394.4,2.94596]
[1721383539171,2.94527,3395.3,3394.4,2.94596]
[1721383539530,2.9451,3395.5,3394.7,2.94576]
[1721383539726,2.9451,3395.5,3394.4,0.294596]
[1721383539727,7.45,3395.6,3395.0,2.9455]
[1721383539933,2.94492,3395.7,3395.0,2.9455]
[1721383539934,2.94481,3395.8,3395.2,2.94527]
[1721383544989,2.94491,3395.7,3395.0,2.9455]
[1721383545195,2.94491,3395.7,3395.1,2.94541]
[1721383546898,2.94473,3395.9,3395.2,2.94531]
[1721383547474,5.3616,3396.0,3395.4,2.94511]
[1721383547652,3.0,3395.9,3395.4,2.94511]
[1721383551057,5.30624,3396.0,3395.4,2.94511]
[1721383551278,2.94464,3396.0,3395.4,2.94511]
[1721383552095,2.94464,3396.0,3395.5,2.94507]
[1721383552504,2.94474,3395.9,3395.2,2.94529]
[1721383552905,2.94474,3395.9,3395.3,2.94519]
[1721383553123,10.39461,3396.1,3395.4,2.94514]
[1721383553329,5.94464,3396.0,3395.4,2.94514]
[1721383553514,2.94473,3395.9,3395.4,2.94514]
[1721383553709,2.94473,3395.9,3395.2,2.94529]
[1721383554121,7.45,3396.1,3395.1,2.4333]
[1721383554442,2.94436,3396.4,3395.7,2.94484]
[1721383555105,10.39414,3396.6,3395.8,2.94475]
[1721383555309,10.39414,3396.6,3395.9,2.9447]
[1721383555310,2.9442,3396.5,3395.9,2.9447]
[1721383556668,2.94429,3396.4,3395.9,2.9447]
[1721383559017,2.94429,3396.4,3395.6,2.94495]
[1721383559018,2.94429,3396.4,3395.7,2.94485]
[1721383559216,2.94429,3396.4,3395.8,2.94481]
[1721383560172,2.94438,3396.3,3395.6,2.94495]
[1721383560331,2.94442,3396.3,3395.4,2.94514]
[1721383560520,2.94462,3396.1,3395.4,2.94514]
[1721383561354,0.61485695,3396.3,3395.5,2.94505]
[1721383561578,6.80359238,3396.5,3395.8,2.94481]
[1721383561579,2.94436,3396.4,3395.8,2.94481]
[1721383562816,2.94436,3396.4,3395.6,2.94496]
[1721383562817,2.9444,3396.3,3395.6,2.94496]
[1721383563171,2.94447,3396.2,3395.6,2.94496]
[1721383563473,2.94447,3396.2,3395.7,2.94489]
[1721383563767,7.45,3396.6,3395.7,3.533893]
[1721383564057,3.0,3396.5,3395.7,2.94489]
[1721383564225,5.94421,3396.5,3395.9,2.94467]
[1721383565256,7.45,3396.6,3396.1,2.94454]
[1721383565417,3.55888695,3396.7,3396.1,2.94454]
[1721383565622,0.61485695,3396.8,3396.2,2.94443]
[1721383566361,2.94395,3396.8,3396.2,2.94443]
[1721383566531,3.55880695,3396.8,3396.2,2.94443]
[1721383567038,2.94395,3396.8,3396.2,2.94443]
[1721383567424,3.55880695,3396.8,3396.2,2.94443]
[1721383567772,3.55880695,3396.8,3396.3,2.94436]
[1721383567773,0.61485695,3396.8,3396.3,2.94436]
[1721383568064,8.06485695,3397.1,3396.5,2.94412]
[1721383568370,0.91507238,3397.2,3396.5,2.94412]
[1721383568371,0.61485695,3397.2,3396.7,2.94403]
[1721383568574,0.61485695,3397.2,3396.8,2.94394]
[1721383568719,0.61485695,3397.3,3396.8,2.94394]
[1721383569267,0.61485695,3397.4,3396.8,2.94394]
[1721383569480,0.61485695,3397.3,3396.8,2.94394]
[1721383569768,0.61485695,3397.4,3396.8,2.94394]
[1721383570121,0.61485695,3397.4,3396.9,2.94385]
[1721383570435,8.06485695,3397.6,3397.2,2.94354]
[1721383570629,0.61485695,3397.7,3397.3,2.94346]
[1721383571243,3.61485695,3397.8,3397.3,2.94346]
[1721383571443,2.94302,3397.9,3397.4,2.9434]
[1721383571444,0.61485695,3397.9,3397.4,2.9434]
[1721383572233,3.55781695,3398.0,3397.4,2.9434]
[1721383572475,2.94299,3397.9,3397.2,2.94354]
[1721383572680,2.94317,3397.7,3397.0,2.94374]
[1721383573128,2.94317,3397.7,3397.1,2.94368]
[1721383573647,2.94352,3397.3,3396.7,5.22443]
[1721383573845,3.07015695,3397.7,3396.3,5.24504]
[1721383574031,2.94391,3396.9,3396.3,2.3007]
[1721383574468,2.94391,3396.9,3396.3,5.24507]
[1721383574681,2.9437,3397.1,3396.3,5.24507]
[1721383574976,2.9439,3396.9,3396.3,2.3007]
[1721383575331,2.94377,3397.0,3396.3,5.24504]
[1721383575834,2.94387,3396.9,3396.3,5.24504]
[1721383576073,2.94403,3396.7,3396.0,2.94461]
[1721383576408,2.94403,3396.7,3396.1,2.94454]
[1721383577179,2.94386,3396.9,3396.2,2.94445]
[1721383577337,2.94395,3396.8,3396.2,2.94445]
[1721383577537,2.94405,3396.7,3395.9,2.9447]
[1721383578671,2.94405,3396.7,3396.1,2.94454]
[1721383578873,2.94405,3396.7,3396.0,2.94462]
[1721383579043,2.94414,3396.6,3396.0,2.94462]
[1721383579698,2.94414,3396.6,3395.8,5.35239]
[1721383579840,2.94429,3396.4,3395.8,2.4076]
[1721383580278,2.94429,3396.4,3395.8,5.35239]
[1721383580484,2.94414,3396.6,3395.9,2.94466]
[1721383580700,2.94414,3396.6,3395.8,2.4076]
[1721383581153,2.94414,3396.6,3396.0,2.94463]
[1721383581482,5.88798,3396.8,3396.1,2.94455]
[1721383582246,2.94403,3396.7,3396.1,2.94455]
[1721383583186,2.94403,3396.7,3395.9,2.94466]
[1721383583358,2.94403,3396.7,3395.4,2.94511]
[1721383583359,2.9443,3396.4,3395.5,2.94507]
[1721383583697,2.9443,3396.4,3395.6,2.94497]
[1721383583843,2.94443,3396.3,3395.6,2.94497]
[1721383584793,0.61485695,3396.5,3396.1,2.94454]
[1721383585086,11.00871695,3396.9,3396.3,2.94432]
[1721383585267,2.94386,3396.9,3396.3,2.94432]
[1721383585783,2.94395,3396.8,3396.1,5.34149]
[1721383586143,2.94403,3396.7,3395.9,2.9447]
[1721383586487,2.94403,3396.7,3395.7,5.32458]
[1721383586488,2.94444,3396.3,3395.7,2.3797]
[1721383586704,2.94444,3396.3,3395.7,5.3797]
[1721383587081,2.94423,3396.5,3395.7,8.32457]
[1721383587402,2.9443,3396.4,3395.7,8.32457]
[1721383587778,0.61485695,3396.6,3395.7,6.506661]
[1721383588111,2.94408,3396.7,3395.7,6.506661]
[1721383588112,2.94408,3396.7,3395.7,5.3797]
[1721383588266,2.94408,3396.7,3395.7,2.3797]
[1721383588465,2.94387,3396.9,3396.2,2.94446]
[1721383588466,3.55872695,3396.9,3396.2,2.94446]
[1721383588767,2.94395,3396.8,3396.2,2.94446]
[1721383590126,0.61485695,3396.9,3396.4,2.94428]
[1721383590422,0.91507238,3397.0,3396.4,2.94428]
[1721383590423,3.55862695,3397.0,3396.4,2.94428]
[1721383590622,2.94387,3396.9,3396.3,2.94437]
[1721383590826,3.55885695,3396.8,3396.1,2.94448]
[1721383591117,3.55885695,3396.8,3396.1,2.94454]
[1721383591306,3.55885695,3396.8,3396.3,2.94437]
[1721383591691,2.94404,3396.7,3396.1,2.94449]
[1721383592915,3.55880695,3396.8,3396.1,2.94449]
[1721383593122,0.61485695,3396.7,3396.1,2.94449]
[1721383593327,2.94395,3396.8,3396.2,2.9444]
[1721383593328,3.55880695,3396.8,3396.2,2.9444]
[1721383593627,0.61485695,3396.8,3396.1,2.94449]
[1721383593780,0.61485695,3396.7,3396.1,2.94449]
[1721383593980,3.55893695,3396.7,3396.1,2.94449]
[1721383594203,3.55898695,3396.6,3395.9,2.9447]
[1721383594397,3.55898695,3396.6,3395.7,2.3797]
[1721383594398,2.94446,3396.3,3395.7,2.3797]
[1721383594599,2.94454,3396.2,3395.5,2.94502]
[1721383595824,2.94454,3396.2,3395.4,3.0]
[1721383595825,0.61485695,3396.3,3395.8,2.94479]
[1721383596120,0.61485695,3396.4,3395.9,2.94472]
[1721383596687,3.85923238,3396.6,3395.9,2.94472]
[1721383596688,0.61485695,3396.5,3395.9,2.94472]
[1721383596911,0.61485695,3396.4,3395.9,2.94472]
[1721383597086,0.61485695,3396.4,3395.7,2.94489]
[1721383597426,0.61485695,3396.4,3395.2,2.94527]
[1721383597427,2.94494,3395.7,3395.0,2.94548]
[1721383597634,2.94499,3395.6,3394.9,5.22477]
[1721383597799,0.61404358,3395.5,3394.9,2.2792]
[1721383598181,0.61404358,3395.5,3394.8,2.94567]
[1721383598626,0.61404358,3395.5,3395.0,2.9455]
[1721383598787,0.91507238,3395.7,3395.0,2.9455]